fUSD/lending_fUSD_20250511
["ID","MTS","AMOUNT","RATE_DAILY","PERIOD"]
[360706938,1746942650302,-400.0,0.00019799,2]
[360706939,1746942650311,-400.0,0.00019799,2]
[360706940,1746942650321,-400.0,0.00019799,2]
[360706941,1746942650331,-862.84,0.00019799,2]
[360706942,1746942650340,-400.0,0.00019799,2]
[360706943,1746942650350,-400.0,0.00019799,2]
[360706944,1746942650360,-400.0,0.00019799,2]
[360706945,1746942650370,-405.09,0.00019799,2]
[360706946,1746942650379,-400.0,0.00019799,2]
[360706947,1746942650389,-256.18,0.00019799,2]
[360706948,1746942650398,-400.0,0.00019799,2]
[360706949,1746942650408,-400.0,0.00019799,2]
[360706950,1746942650418,-400.0,0.00019799,2]
[360706951,1746942650427,-400.0,0.00019799,2]
[360706952,1746942650437,-400.0,0.00019799,2]
[360706953,1746942650446,-400.0,0.00019799,2]
[360706954,1746942650456,-400.0,0.00019799,2]
[360706955,1746942650465,-400.0,0.00019799,2]
[360706956,1746942650476,-400.0,0.00019799,2]
[360706957,1746942650485,-490.93,0.00019799,2]
[360706958,1746942650495,-428.10712948,0.00019799,2]
[360706959,1746942650504,-400.0,0.00019799,2]
[360706960,1746942650513,-400.0,0.00019799,2]
[360706961,1746942650524,-244.99,0.00019799,2]
[360706962,1746942650535,-170.1,0.00019799,2]
[360706963,1746942650544,-400.0,0.00019799,2]
[360706964,1746942650553,-400.0,0.00019799,2]
[360706965,1746942650563,-154.79,0.00019799,2]
[360706966,1746942650572,-400.0,0.00019799,2]
[360706967,1746942650582,-491.56,0.00019799,2]
[360706968,1746942650591,-400.0,0.00019799,2]
[360706969,1746942650601,-400.0,0.00019799,2]
[360706970,1746942650610,-400.0,0.00019799,2]
[360706971,1746942650620,-400.0,0.00019799,2]
[360706972,1746942650629,-544.62,0.00019799,2]
[360706973,1746942650639,-400.0,0.00019799,2]
[360706974,1746942650648,-400.0,0.00019799,2]
[360706975,1746942650660,-413.58,0.00019799,2]
[360706976,1746942650670,-1075.85,0.00019799,2]
[360706977,1746942650679,-424.27,0.00019799,2]
[360706978,1746942650689,-400.0,0.00019799,2]
[360706979,1746942650699,-400.0,0.00019799,2]
[360706980,1746942650708,-374.0,0.000198,2]
[360706981,1746942650718,-765.0,0.000198,2]
[360706982,1746942650729,-4396.528984,0.000198,2]
[360706983,1746942650739,-46998.47641699,0.000198,2]
[360706984,1746942651447,-255.91,0.00019386,2]
[360706985,1746942651468,-171.95066205,0.00019386,2]
[360706986,1746942651480,-400.0,0.00019386,2]
[360706987,1746942651489,-400.0,0.00019758,2]
[360706988,1746942651499,-320.55870939,0.00019799,2]
[360706989,1746942651508,-236.0,0.000198,2]
[360706990,1746942651517,-12265.63455656,0.000198,2]
[360706991,1746942651538,-47311.87659515,0.000198,2]
[360706992,1746942651550,-150690.84908823,0.000198,2]
[360706993,1746942651560,-46048.6311535,0.000198,2]
[360706994,1746942651569,-439.53413914,0.00019803,2]
[360706995,1746942651579,-150.0,0.00019808,2]
[360706996,1746942651588,-250.14487819,0.00019809,2]
[360706997,1746942651597,-169.5712259,0.00019814,2]
[360706998,1746942651607,-4774.50458451,0.00019819,2]
[360706999,1746942651616,-766.52,0.00019821,2]
[360707000,1746942651626,-489.12,0.00019821,2]
[360707001,1746942651636,-812.34,0.00019821,2]
[360707002,1746942651645,-400.0,0.00019821,2]
[360707003,1746942651655,-400.0,0.00019821,2]
[360707004,1746942651667,-426.64,0.00019821,2]
[360707005,1746942651676,-400.0,0.00019821,2]
[360707006,1746942651686,-400.0,0.00019821,2]
[360707007,1746942651695,-564.65,0.00019821,2]
[360707008,1746942651705,-443.09,0.00019821,2]
[360707009,1746942651715,-400.0,0.00019821,2]
[360707010,1746942651724,-588.57,0.00019821,2]
[360707011,1746942651734,-400.0,0.00019821,2]
[360707012,1746942651744,-862.84,0.00019821,2]
[360707013,1746942651753,-348.99158374,0.00019821,2]
[360707014,1746942651762,-405.09,0.00019821,2]
[360707015,1746942651771,-400.0,0.00019821,2]
[360707016,1746942651782,-400.0,0.00019821,2]
[360707017,1746942651791,-400.0,0.00019821,2]
[360707018,1746942651800,-490.93,0.00019821,2]
[360707019,1746942651809,-400.0,0.00019821,2]
[360707020,1746942651818,-544.62,0.00019821,2]
[360707021,1746942651828,-400.0,0.00019821,2]
[360707022,1746942651837,-3275.01942822,0.00019822,2]
[360707023,1746942651847,-439.53413914,0.00019822,2]
[360707024,1746942651855,-252.62072736,0.00019835,2]
[360707025,1746942651864,-250.14487819,0.00019839,2]
[360707026,1746942651874,-439.53413914,0.00019842,2]
[360707027,1746942651883,-364.73295472,0.00019846,2]
[360707028,1746942651892,-4774.50458451,0.00019846,2]
[360707029,1746942651901,-154.36297733,0.0001985,2]
[360707030,1746942651910,-150.0,0.00019851,2]
[360707031,1746942651919,-449.12,0.00019858,2]
[360707032,1746942651928,-636.023,0.00019858,2]
[360707033,1746942651938,-801.0,0.00019858,2]
[360707034,1746942651947,-310.402,0.00019858,2]
[360707035,1746942651957,-423.293,0.00019858,2]
[360707036,1746942651966,-882.267,0.00019858,2]
[360707037,1746942651975,-1159.669,0.00019858,2]
[360707038,1746942651984,-439.53413914,0.00019861,2]
[360707039,1746942651994,-250.14487819,0.0001987,2]
[360707040,1746942652003,-526.94,0.0001987,2]
[360707041,1746942652013,-400.0,0.0001987,2]
[360707042,1746942652022,-500.0,0.00019873,2]
[360707043,1746942652032,-364.73295472,0.00019873,2]
[360707044,1746942652041,-4774.50458451,0.00019873,2]
[360707045,1746942652051,-150.0,0.00019874,2]
[360707046,1746942652060,-400.0,0.00019874,2]
[360707047,1746942652069,-400.0,0.00019874,2]
[360707048,1746942652078,-400.0,0.00019874,2]
[360707049,1746942652087,-400.0,0.00019874,2]
[360707050,1746942652097,-411.04,0.00019874,2]
[360707051,1746942652106,-400.0,0.00019874,2]
[360707052,1746942652116,-400.0,0.00019874,2]
[360707053,1746942652126,-400.0,0.00019874,2]
[360707054,1746942652135,-400.0,0.00019874,2]
[360707055,1746942652144,-400.0,0.00019874,2]
[360707056,1746942652153,-400.0,0.00019874,2]
[360707057,1746942652163,-400.0,0.00019875,2]
[360707058,1746942652172,-400.0,0.00019875,2]
[360707059,1746942652182,-545.58,0.00019875,2]
[360707060,1746942652192,-964.76,0.00019875,2]
[360707061,1746942652201,-400.0,0.00019875,2]
[360707062,1746942652211,-400.0,0.00019875,2]
[360707063,1746942652221,-400.0,0.00019875,2]
[360707064,1746942652230,-400.0,0.00019875,2]
[360707065,1746942652241,-400.0,0.00019875,2]
[360707066,1746942652250,-400.0,0.00019875,2]
[360707067,1746942652259,-526.27,0.00019875,2]
[360707068,1746942652269,-400.0,0.00019875,2]
[360707069,1746942652279,-400.0,0.00019875,2]
[360707070,1746942652288,-449.04,0.00019875,2]
[360707071,1746942652297,-400.0,0.00019875,2]
[360707072,1746942652306,-400.0,0.00019875,2]
[360707073,1746942652316,-400.0,0.00019875,2]
[360707074,1746942652325,-400.0,0.00019875,2]
[360707075,1746942652335,-400.0,0.00019875,2]
[360707076,1746942652344,-400.0,0.00019875,2]
[360707077,1746942652354,-400.0,0.00019875,2]
[360707078,1746942652363,-400.0,0.00019875,2]
[360707079,1746942652374,-15222.87,0.00019875,2]
[360707080,1746942652383,-400.0,0.00019875,2]
[360707081,1746942652393,-400.0,0.00019875,2]
[360707082,1746942652403,-190.96,0.00019875,2]
[360707083,1746942652413,-400.0,0.00019875,2]
[360707084,1746942652424,-400.0,0.00019875,2]
[360707085,1746942652433,-400.0,0.00019875,2]
[360707086,1746942652444,-400.0,0.00019875,2]
[360707087,1746942652453,-400.0,0.00019875,2]
[360707088,1746942652462,-400.0,0.00019875,2]
[360707089,1746942652471,-400.0,0.00019875,2]
[360707090,1746942652481,-1075.85,0.00019875,2]
[360707091,1746942652490,-424.27,0.00019875,2]
[360707092,1746942652499,-12915.845044,0.00019878,2]
[360707093,1746942652509,-647.6468267,0.00019878,2]
[360707094,1746942652518,-439.53413914,0.00019881,2]
[360707095,1746942652527,-220.70409987,0.00019882,2]
[360707096,1746942652537,-10734.4492598,0.00019883,2]
[360707097,1746942652548,-3256.0422142,0.00019883,2]
[360707098,1746942652557,-4948.1022966,0.00019883,2]
[360707099,1746942652567,-8928.8962887,0.00019883,2]
[360707100,1746942652576,-362.742066,0.00019883,2]
[360707101,1746942652586,-400.0,0.00019884,2]
[360707102,1746942652596,-400.0,0.00019884,2]
[360707103,1746942652605,-158.8970178,0.00019884,2]
[360707104,1746942652614,-400.0,0.00019884,2]
[360707105,1746942652624,-211.82728837,0.00019884,2]
[360707106,1746942652633,-400.0,0.00019884,2]
[360707107,1746942652642,-400.0,0.00019884,2]
[360707108,1746942652652,-400.0,0.00019884,2]
[360707109,1746942652664,-400.0,0.00019884,2]
[360707110,1746942652673,-400.0,0.00019884,2]
[360707111,1746942652682,-400.0,0.00019884,2]
[360707112,1746942652691,-299.44,0.00019884,2]
[360707113,1746942652701,-400.0,0.00019884,2]
[360707114,1746942652711,-400.0,0.00019884,2]
[360707115,1746942652720,-353.71,0.00019884,2]
[360707116,1746942652731,-360.62,0.00019884,2]
[360707117,1746942652740,-400.0,0.00019884,2]
[360707118,1746942652750,-400.0,0.00019884,2]
[360707119,1746942652759,-181.12,0.00019884,2]
[360707120,1746942652768,-400.0,0.00019884,2]
[360707121,1746942652777,-400.0,0.00019884,2]
[360707122,1746942652788,-400.0,0.00019884,2]
[360707123,1746942652797,-400.0,0.00019884,2]
[360707124,1746942652806,-424.62,0.00019884,2]
[360707125,1746942652815,-1001.55,0.00019884,2]
[360707126,1746942652825,-400.0,0.00019884,2]
[360707127,1746942652834,-548.72,0.00019884,2]
[360707128,1746942652843,-586.24,0.00019884,2]
[360707129,1746942652852,-591.39,0.00019884,2]
[360707130,1746942652861,-6308.59,0.00019884,2]
[360707131,1746942652870,-166.53359751,0.00019884,2]
[360707132,1746942652879,-400.0,0.00019884,2]
[360707133,1746942652889,-400.0,0.00019884,2]
[360707134,1746942652899,-400.0,0.00019884,2]
[360707135,1746942652908,-414.38,0.00019884,2]
[360707136,1746942652918,-220.27,0.00019884,2]
[360707137,1746942652927,-555.76,0.00019884,2]
[360707138,1746942652937,-400.0,0.00019884,2]
[360707139,1746942652947,-400.0,0.00019884,2]
[360707140,1746942652956,-400.0,0.00019884,2]
[360707141,1746942652965,-400.0,0.00019884,2]
[360707142,1746942652974,-511.72,0.00019884,2]
[360707143,1746942652983,-400.0,0.00019884,2]
[360707144,1746942652993,-400.0,0.00019884,2]
[360707145,1746942653002,-400.0,0.00019884,2]
[360707146,1746942653012,-400.0,0.00019884,2]
[360707147,1746942653021,-400.0,0.00019884,2]
[360707148,1746942653030,-456.19,0.00019884,2]
[360707149,1746942653040,-400.0,0.00019884,2]
[360707150,1746942653050,-400.0,0.00019884,2]
[360707151,1746942653059,-400.0,0.00019884,2]
[360707152,1746942653068,-400.0,0.00019884,2]
[360707153,1746942653078,-400.0,0.00019884,2]
[360707154,1746942653087,-400.0,0.00019884,2]
[360707155,1746942653096,-151.0,0.00019886,2]
[360707156,1746942653106,-500.0,0.00019886,2]
[360707157,1746942653116,-500.0,0.00019886,2]
[360707158,1746942653126,-500.0,0.00019886,2]
[360707159,1746942653135,-500.0,0.00019886,2]
[360707160,1746942653144,-500.0,0.00019886,2]
[360707161,1746942653154,-500.0,0.00019886,2]
[360707162,1746942653164,-500.0,0.00019886,2]
[360707163,1746942653173,-500.0,0.00019886,2]
[360707164,1746942653183,-500.0,0.00019886,2]
[360707165,1746942653192,-500.0,0.00019886,2]
[360707166,1746942653202,-500.0,0.00019886,2]
[360707167,1746942653212,-500.0,0.00019886,2]
[360707168,1746942653221,-500.0,0.00019886,2]
[360707169,1746942653232,-500.0,0.00019886,2]
[360707170,1746942653241,-500.0,0.00019886,2]
[360707171,1746942653251,-500.0,0.00019886,2]
[360707172,1746942653261,-500.0,0.00019886,2]
[360707173,1746942653271,-500.0,0.00019886,2]
[360707174,1746942653280,-500.0,0.00019886,2]
[360707175,1746942653290,-500.0,0.00019886,2]
[360707176,1746942653299,-500.0,0.00019886,2]
[360707177,1746942653309,-500.0,0.00019886,2]
[360707178,1746942653319,-500.0,0.00019886,2]
[360707179,1746942653329,-500.0,0.00019886,2]
[360707180,1746942653338,-500.0,0.00019886,2]
[360707181,1746942653347,-500.0,0.00019886,2]
[360707182,1746942653357,-500.0,0.00019886,2]
[360707183,1746942653367,-500.0,0.00019886,2]
[360707184,1746942653376,-685.0,0.00019886,2]
[360707185,1746942653386,-832.0,0.00019886,2]
[360707186,1746942653395,-8553.0534756,0.00019886,2]
[360707187,1746942653406,-6371.6576914,0.00019886,2]
[360707188,1746942653415,-4190.2619072,0.00019886,2]
[360707189,1746942653424,-2008.866123,0.00019886,2]
[360707190,1746942653434,-872.8100225,0.00019886,2]
[360707191,1746942653444,-1097.9732183,0.00019886,2]
[360707192,1746942653454,-1323.1364141,0.00019886,2]
[360707193,1746942653464,-1548.29961,0.00019886,2]
[360707194,1746942653474,-151.0,0.00019886,2]
[360707195,1746942653484,-151.0,0.00019886,2]
[360707196,1746942653495,-2891.5605767,0.00019886,2]
[360707197,1746942653504,-151.0,0.00019886,2]
[360707198,1746942653514,-2527.0789393,0.00019886,2]
[360707199,1746942653523,-2162.5973018,0.00019886,2]
[360707200,1746942653533,-1798.1156643,0.00019886,2]
[360707201,1746942653542,-151.0,0.00019886,2]
[360707202,1746942653552,-4394.2113121,0.00019886,2]
[360707203,1746942653561,-3840.3203277,0.00019886,2]
[360707204,1746942653571,-3286.4293433,0.00019886,2]
[360707205,1746942653580,-2732.5383588,0.00019886,2]
[360707206,1746942653589,-299.513329,0.00019886,2]
[360707207,1746942653598,-299.513329,0.00019886,2]
[360707208,1746942653607,-7929.3948922,0.00019886,2]
[360707209,1746942653617,-6929.8934958,0.00019886,2]
[360707210,1746942653628,-5930.3920993,0.00019886,2]
[360707211,1746942653638,-4930.8907029,0.00019886,2]
[360707212,1746942653647,-151.0,0.00019886,2]
[360707213,1746942653657,-166.615972,0.00019886,2]
[360707214,1746942653669,-151.0,0.00019886,2]
[360707215,1746942653678,-151.0,0.00019886,2]
[360707216,1746942653688,-322.1366889,0.00019886,2]
[360707217,1746942653697,-281.5313117,0.00019886,2]
[360707218,1746942653708,-240.9259345,0.00019886,2]
[360707219,1746942653718,-200.3205573,0.00019886,2]
[360707220,1746942653727,-165.34123055,0.00019897,2]
[360707221,1746942653738,-527.25835715,0.00019897,2]
[360707222,1746942653749,-254.39111517,0.00019897,2]
[360707223,1746942653759,-275.68021413,0.00019897,2]
[360707224,1746942653768,-473.24659314,0.00019897,2]
[360707225,1746942653778,-766.52,0.00019897,2]
[360707226,1746942653788,-489.12,0.00019897,2]
[360707227,1746942653797,-812.34,0.00019897,2]
[360707228,1746942653806,-347.36644817,0.00019897,2]
[360707229,1746942653816,-530.39,0.00019897,2]
[360707230,1746942653825,-426.64,0.00019897,2]
[360707231,1746942653835,-400.0,0.00019897,2]
[360707232,1746942653845,-400.0,0.00019897,2]
[360707233,1746942653854,-564.65,0.00019897,2]
[360707234,1746942653863,-443.09,0.00019897,2]
[360707235,1746942653872,-400.0,0.00019897,2]
[360707236,1746942653882,-588.57,0.00019897,2]
[360707237,1746942653891,-400.0,0.00019897,2]
[360707238,1746942653901,-862.84,0.00019897,2]
[360707239,1746942653910,-405.09,0.00019897,2]
[360707240,1746942653919,-400.0,0.00019897,2]
[360707241,1746942653929,-400.0,0.00019897,2]
[360707242,1746942653938,-400.0,0.00019897,2]
[360707243,1746942653947,-490.93,0.00019897,2]
[360707244,1746942653957,-400.0,0.00019897,2]
[360707245,1746942653966,-544.62,0.00019897,2]
[360707246,1746942653976,-400.0,0.00019897,2]
[360707247,1746942653985,-1164.93886302,0.00019898,5]
[360707248,1746942653994,-400.0,0.00019899,2]
[360707249,1746942654004,-400.0,0.00019899,2]
[360707250,1746942654014,-400.0,0.00019899,2]
[360707251,1746942654023,-400.0,0.00019899,2]
[360707252,1746942654033,-400.0,0.00019899,2]
[360707253,1746942654043,-964.76,0.00019899,2]
[360707254,1746942654054,-400.0,0.00019899,2]
[360707255,1746942654064,-411.04,0.00019899,2]
[360707256,1746942654073,-313.73,0.00019899,2]
[360707257,1746942654082,-400.0,0.00019899,2]
[360707258,1746942654092,-400.0,0.00019899,2]
[360707259,1746942654102,-400.0,0.00019899,2]
[360707260,1746942654112,-400.0,0.00019899,2]
[360707261,1746942654122,-400.0,0.00019899,2]
[360707262,1746942654131,-400.0,0.00019899,2]
[360707263,1746942654141,-526.27,0.00019899,2]
[360707264,1746942654150,-400.0,0.00019899,2]
[360707265,1746942654160,-400.0,0.00019899,2]
[360707266,1746942654171,-400.0,0.00019899,2]
[360707267,1746942654180,-449.04,0.00019899,2]
[360707268,1746942654190,-400.0,0.00019899,2]
[360707269,1746942654199,-226.30011888,0.00019899,2]
[360707270,1746942654209,-400.0,0.00019899,2]
[360707271,1746942654219,-400.0,0.00019899,2]
[360707272,1746942654229,-400.0,0.00019899,2]
[360707273,1746942654239,-400.0,0.00019899,2]
[360707274,1746942654249,-400.0,0.00019899,2]
[360707275,1746942654259,-400.0,0.00019899,2]
[360707276,1746942654268,-400.0,0.00019899,2]
[360707277,1746942654277,-15222.87,0.00019899,2]
[360707278,1746942654286,-400.0,0.00019899,2]
[360707279,1746942654296,-400.0,0.00019899,2]
[360707280,1746942654305,-400.0,0.00019899,2]
[360707281,1746942654314,-400.0,0.00019899,2]
[360707282,1746942654323,-400.0,0.00019899,2]
[360707283,1746942654333,-400.0,0.00019899,2]
[360707284,1746942654342,-400.0,0.00019899,2]
[360707285,1746942654351,-400.0,0.00019899,2]
[360707286,1746942654360,-489.08,0.00019899,2]
[360707287,1746942654370,-400.0,0.00019899,2]
[360707288,1746942654379,-545.97595678,0.00019899,2]
[360707289,1746942654388,-1075.85,0.00019899,2]
[360707290,1746942654397,-424.27,0.00019899,2]
[360707291,1746942654407,-489.35652044,0.00019899,2]
[360707292,1746942654416,-4756.33736898,0.000199,3]
[360707293,1746942654426,-5222.74015278,0.000199,2]
[360707294,1746942654435,-5499.93897336,0.000199,2]
[360707295,1746942654445,-12500.0,0.000199,2]
[360707296,1746942654454,-439.53413914,0.000199,2]
[360707297,1746942654463,-12500.0,0.000199,2]
[360707298,1746942654472,-364.73295472,0.000199,2]
[360707299,1746942654481,-250.14487819,0.000199,2]
[360707300,1746942654491,-2479.86299903,0.000199,2]
[360707301,1746942654593,-7433.91692491,0.00019764,2]
[360707302,1746942654609,-413.5475627,0.00019764,2]
[360707303,1746942654618,-17255.77105669,0.000199,2]
[360707304,1746942654628,-169.5712259,0.000199,2]
[360707305,1746942654637,-398.98386758,0.000199,3]
[360707306,1746942654646,-13963.86390381,0.000199,2]
[360707307,1746942654656,-4774.50458451,0.000199,2]
[360707308,1746942654668,-957.29344672,0.000199,2]
[360707309,1746942654677,-3452.36942574,0.000199,2]
[360707310,1746942654686,-9762.63009115,0.000199,2]
[360707311,1746942654702,-1173.89999811,0.000199,2]
[360707312,1746942654713,-5190.0,0.000199,2]
[360707313,1746942660234,1800.0,0.0003,120]
[360707314,1746942770284,1814.40117206,0.00030136,120]
[360707315,1746942864248,1000.0,0.00017004,2]
[360707316,1746942867906,1000.0,0.00017004,2]
[360707317,1746942868350,1000.0,0.00017004,2]
[360707318,1746942868686,1000.0,0.00017004,2]
[360707319,1746942869123,1000.0,0.00017004,2]
[360707320,1746943157617,250.0,0.00017,2]
[360707321,1746943192986,190.45427007,0.00017,2]
[360707322,1746943217687,151.97,0.00013699,2]
[360707323,1746943254423,320.0,0.00025926,120]
[360707324,1746943254825,320.0,0.00028283,120]
[360707326,1746943456392,3509.6025076,0.00030136,120]
[360707328,1746943496242,758.26,0.00016919,2]
[360707329,1746943530619,2489.0,0.00017,2]
[360707331,1746943631114,-151.53,0.00018745,2]
[360707332,1746943631135,-307.63,0.00018839,2]
[360707333,1746943631156,-175.5,0.00018852,2]
[360707334,1746943631179,-320.0,0.00018855,2]
[360707335,1746943631200,-62.85406396,0.00019,2]
[360707357,1746943832122,-1000.0,0.00018845,2]
[360707358,1746943832132,-200.0,0.00018923,2]
[360707359,1746943832143,-237.14593604,0.00019,2]
[360707360,1746943832153,-200.0,0.00019,4]
[360707361,1746943832163,-200.51880758,0.00019,4]
[360707362,1746943832172,-156.67,0.00019178,2]
[360707363,1746943832181,-758.26,0.00019183,2]
[360707364,1746943832190,-151.0,0.00019374,2]
[360707365,1746943832200,-207.4,0.00019374,2]
[360707366,1746943832209,-668.65185757,0.00019374,2]
[360707367,1746943832222,-1200.0,0.00019384,2]
[360707368,1746943832233,-300.0,0.00019385,2]
[360707369,1746943832243,-400.0,0.00019386,2]
[360707370,1746943832253,-400.0,0.00019386,2]
[360707371,1746943832262,-400.0,0.00019386,2]
[360707372,1746943832271,-400.0,0.00019386,2]
[360707373,1746943832281,-166.8,0.00019404,2]
[360707374,1746943832290,-150.0,0.00019696,2]
[360707375,1746943832300,-1021.0,0.000197,2]
[360707376,1746943832309,-176.81,0.000197,2]
[360707377,1746943832318,-2435.851,0.00019725,2]
[360707378,1746943832327,-200.0,0.00019734,2]
[360707379,1746943832337,-1000.0,0.00019797,2]
[360707380,1746943832347,-2564.86,0.00019797,2]
[360707381,1746943832357,-1569.49289754,0.00019797,2]
[360707382,1746943832367,-500.0,0.00019799,2]
[360707383,1746943832376,-171.00468055,0.00019799,2]
[360707384,1746943832385,-1046.0,0.000198,2]
[360707385,1746943832395,-1000.0,0.000198,2]
[360707386,1746943832404,-1005.0,0.000198,2]
[360707387,1746943832414,-1000.0,0.000198,2]
[360707388,1746943832423,-154.2280362,0.000198,2]
[360707390,1746943832433,-236.0,0.000198,2]
[360707392,1746943832442,-374.0,0.000198,2]
[360707393,1746943832452,-765.0,0.000198,2]
[360707394,1746943832461,-2864.30678452,0.000198,2]
[360707395,1746943832484,-850.89198,0.000198,2]
[360707397,1746943832546,-681.33021948,0.000198,2]
[360707399,1746943832555,-711.7398904,0.00019808,2]
[360707405,1746943832603,-329.76386651,0.00019808,2]
[360707407,1746943832616,-527.98914061,0.00019808,2]
[360707409,1746943832625,-800.31155474,0.0001982,2]
[360707506,1746943838307,-769.18134278,0.0001982,2]
[360707507,1746943838316,-1569.49289752,0.00019831,2]
[360707508,1746943838325,-1272.54580826,0.00019843,2]
[360707509,1746943838336,-296.94708926,0.00019843,2]
[360707510,1746943838345,-1569.49289752,0.00019854,2]
[360707511,1746943838355,-154.684,0.00019858,2]
[360707512,1746943838363,-150.0,0.0001986,2]
[360707513,1746943838372,-198.91,0.0001986,2]
[360707514,1746943838383,-150.0,0.00019861,2]
[360707515,1746943838392,-507.63226776,0.00019866,2]
[360707520,1746943840423,-1061.86062976,0.00019866,2]
[360707521,1746943840433,-501.75196777,0.00019873,2]
[360707522,1746943840442,-500.0,0.00019873,2]
[360707523,1746943840453,-1079.72749076,0.00019877,2]
[360707524,1746943840465,-489.76540676,0.00019877,2]
[360707525,1746943840475,-586.27233375,0.00019884,2]
[360707526,1746943840485,-193.2,0.00019888,2]
[360707527,1746943840494,-398.38525952,0.00019889,2]
[360707528,1746943840593,-1000.0,0.00019889,2]
[360707529,1746943840651,-171.107638,0.00019889,2]
[360707530,1746943840660,-319.43897964,0.0001989,2]
[360707556,1746943843268,-680.56102036,0.0001989,2]
[360707558,1746943843277,-1000.0,0.0001989,2]
[360707560,1746943843286,-1000.0,0.0001989,2]
[360707562,1746943843296,-223.8197069,0.0001989,2]
[360707564,1746943843305,-159.71518077,0.0001989,2]
[360707566,1746943843314,-403.8847281,0.0001989,2]
[360707568,1746943843324,-180.7158599,0.00019891,2]
[360707570,1746943843333,-238.9390045,0.00019891,2]
[360707572,1746943843342,-80125.77991383,0.00019897,2]
[360707574,1746943843353,-14903.664108,0.00019897,2]
[360707582,1746943845703,-2615.06841818,0.00019897,2]
[360707583,1746943845717,-12463.51665999,0.00019897,2]
[360707584,1746943845727,-1258.2986407,0.00019897,2]
[360707585,1746943845737,-407.6,0.00019897,2]
[360707586,1746943845747,-475.71037448,0.00019897,2]
[360707587,1746943845758,-638.77,0.00019897,2]
[360707588,1746943845767,-400.0,0.00019897,2]
[360707589,1746943845777,-400.0,0.00019897,2]
[360707590,1746943845786,-400.0,0.00019897,2]
[360707591,1746943845795,-400.0,0.00019897,2]
[360707592,1746943845804,-676.95,0.00019897,2]
[360707593,1746943845814,-400.0,0.00019897,2]
[360707595,1746943845823,-599.1,0.00019897,2]
[360707597,1746943845832,-400.0,0.00019897,2]
[360707598,1746943845842,-400.0,0.00019897,2]
[360707599,1746943845852,-450.0,0.00019897,2]
[360707600,1746943845863,-400.0,0.00019897,2]
[360707601,1746943845872,-400.0,0.00019897,2]
[360707602,1746943845881,-400.0,0.00019897,2]
[360707603,1746943845890,-400.0,0.00019897,2]
[360707604,1746943845899,-400.0,0.00019897,2]
[360707605,1746943845909,-403.45,0.00019897,2]
[360707606,1746943845918,-400.0,0.00019897,2]
[360707607,1746943845928,-400.0,0.00019897,2]
[360707608,1746943845937,-400.0,0.00019897,2]
[360707609,1746943845946,-400.0,0.00019897,2]
[360707610,1746943845955,-502.45193362,0.00019897,2]
[360707612,1746943845964,-400.0,0.00019897,2]
[360707614,1746943845974,-400.0,0.00019897,2]
[360707616,1746943845986,-400.0,0.00019897,2]
[360707618,1746943845996,-412.44,0.00019897,2]
[360707620,1746943846005,-400.0,0.00019897,2]